lending/lending_fUSD_20240705
["ID","MTS","AMOUNT","RATE_DAILY","PERIOD"]
[331234925,1720149050111,-166.909059,0.00021534,2]
[331234928,1720149050121,-151.0,0.00021534,2]
[331234931,1720149050130,-178.296799,0.00021534,2]
[331234934,1720149050140,-178.296799,0.00021534,2]
[331234937,1720149050149,-354.88,0.00021537,2]
[331234940,1720149050159,-354.88,0.00021537,2]
[331234943,1720149050168,-164.9,0.00021537,2]
[331234945,1720149050178,-848.74,0.00021537,2]
[331234948,1720149050187,-354.88,0.00021537,2]
[331234951,1720149050197,-350.24,0.00021537,2]
[331234954,1720149050206,-528.5,0.00021537,2]
[331234957,1720149050218,-151.0,0.00021542,2]
[331234960,1720149050229,-208.06971,0.00021543,2]
[331234963,1720149050238,-417.716555,0.00021543,2]
[331234966,1720149050247,-1194.625344,0.00021543,2]
[331234969,1720149050261,-240.065953,0.00021543,2]
[331234971,1720149050271,-428.743466,0.00021543,2]
[331234974,1720149050282,-578.942534,0.00021543,2]
[331234976,1720149050291,-2200.0,0.000216,7]
[331234979,1720149050304,-5647.3551578,0.0002163,2]
[331234982,1720149050313,-337.15,0.00021644,2]
[331234985,1720149050323,-163.77,0.00021644,2]
[331234987,1720149050334,-317.29,0.00021644,2]
[331234989,1720149050346,-182.257368,0.00021644,2]
[331234991,1720149050355,-182.257368,0.00021644,2]
[331234993,1720149050364,-151.0,0.0002168,2]
[331234995,1720149050374,-151.0,0.0002168,2]
[331234997,1720149050383,-159.294358,0.0002168,2]
[331234999,1720149050392,-151.41562,0.0002168,2]
[331235001,1720149050401,-151.41562,0.0002168,2]
[331235003,1720149050412,-1926.14331034,0.00021686,2]
[331235005,1720149050421,-2700.0,0.000217,7]
[331235007,1720149050431,-250000.0,0.000217,2]
[331235009,1720149050442,-151.0,0.000217,2]
[331235011,1720149050451,-151.0,0.000217,2]
[331235013,1720149050461,-469.01014,0.000217,2]
[331235015,1720149050470,-151.0,0.000217,2]
[331235017,1720149050479,-151.0,0.000217,2]
[331235019,1720149050490,-151.0,0.000217,2]
[331235021,1720149050499,-435.272386,0.000217,2]
[331235022,1720149050509,-151.0,0.000217,2]
[331235025,1720149050519,-152.594212,0.000217,2]
[331235026,1720149050528,-435.272386,0.000217,2]
[331235028,1720149050538,-151.0,0.000217,2]
[331235031,1720149050547,-151.0,0.000217,2]
[331235033,1720149050562,-270.377349,0.000217,2]
[331235035,1720149050572,-270.377349,0.000217,2]
[331235037,1720149050582,-151.0,0.000217,2]
[331235039,1720149050591,-151.0,0.000217,2]
[331235041,1720149050601,-380.96148,0.000217,2]
[331235043,1720149050610,-380.96148,0.000217,2]
[331235045,1720149050619,-157.980726,0.000217,2]
[331235046,1720149050629,-151.0,0.000217,2]
[331235049,1720149050639,-157.980726,0.000217,2]
[331235051,1720149050648,-151.0,0.000217,2]
[331235053,1720149050658,-151.0,0.000217,2]
[331235055,1720149050668,-151.0,0.000217,2]
[331235057,1720149050678,-254.93662,0.000217,2]
[331235059,1720149050687,-151.0,0.000217,2]
[331235060,1720149050697,-254.93662,0.000217,2]
[331235062,1720149050707,-151.0,0.000217,2]
[331235064,1720149050716,-151.0,0.000217,2]
[331235066,1720149050726,-151.0,0.000217,2]
[331235068,1720149050738,-151.89676,0.000217,2]
[331235070,1720149050747,-151.0,0.000217,2]
[331235072,1720149050757,-151.0,0.000217,2]
[331235074,1720149050766,-151.0,0.000217,2]
[331235076,1720149050776,-405.573681,0.000217,2]
[331235078,1720149050785,-405.573681,0.000217,2]
[331235080,1720149050795,-151.0,0.000217,2]
[331235082,1720149050812,-151.0,0.000217,2]
[331235084,1720149050822,-1536.815455,0.000217,2]
[331235086,1720149050831,-1536.815455,0.000217,2]
[331235088,1720149050841,-151.0,0.000217,2]
[331235089,1720149050851,-151.0,0.000217,2]
[331235090,1720149050860,-151.0,0.000217,2]
[331235092,1720149050870,-151.0,0.000217,2]
[331235094,1720149050880,-182.257368,0.000217,2]
[331235096,1720149050889,-178.296799,0.000217,2]
[331235098,1720149050898,-178.296799,0.000217,2]
[331235100,1720149050907,-182.257368,0.000217,2]
[331235102,1720149050916,-768.577486,0.000217,2]
[331235104,1720149050926,-768.577486,0.000217,2]
[331235106,1720149050935,-151.0,0.000217,2]
[331235108,1720149050945,-151.0,0.000217,2]
[331235110,1720149050955,-289.294113,0.000217,2]
[331235112,1720149050964,-289.294113,0.000217,2]
[331235114,1720149050974,-151.0,0.000217,2]
[331235116,1720149050984,-151.0,0.000217,2]
[331235118,1720149050994,-151.0,0.000217,2]
[331235120,1720149051005,-393.523842,0.000217,2]
[331235122,1720149051015,-151.0,0.000217,2]
[331235124,1720149051024,-393.523842,0.000217,2]
[331235126,1720149051034,-366.444779,0.000217,2]
[331235128,1720149051045,-366.444779,0.000217,2]
[331235129,1720149051064,-151.0,0.000217,2]
[331235131,1720149051073,-151.0,0.000217,2]
[331235133,1720149051083,-214.460407,0.000217,2]
[331235135,1720149051093,-151.0,0.000217,2]
[331235137,1720149051103,-214.460407,0.000217,2]
[331235139,1720149051114,-151.0,0.000217,2]
[331235141,1720149051124,-461.052404,0.000217,2]
[331235143,1720149051134,-461.052404,0.000217,2]
[331235145,1720149051144,-151.0,0.000217,2]
[331235147,1720149051155,-250.371047,0.000217,2]
[331235149,1720149051165,-250.371047,0.000217,2]
[331235151,1720149051175,-151.0,0.000217,2]
[331235153,1720149051185,-1415.170171,0.000217,2]
[331235155,1720149051194,-151.0,0.000217,2]
[331235157,1720149051204,-1322.837372,0.000217,2]
[331235159,1720149051219,-1322.837372,0.000217,2]
[331235161,1720149051229,-151.0,0.000217,2]
[331235163,1720149051239,-151.0,0.000217,2]
[331235165,1720149051248,-1347.722175,0.000217,2]
[331235167,1720149051261,-1347.722175,0.000217,2]
[331235169,1720149051273,-6365.843658,0.000217,2]
[331235171,1720149051283,-151.0,0.000217,2]
[331235173,1720149051292,-151.0,0.000217,2]
[331235175,1720149051306,-276.542065,0.000217,2]
[331235176,1720149051317,-167.919518,0.000217,2]
[331235178,1720149051327,-424.443519,0.000217,2]
[331235180,1720149051340,-151.0,0.000217,2]
[331235182,1720149051350,-276.542065,0.000217,2]
[331235185,1720149051361,-6365.843658,0.000217,2]
[331235187,1720149051371,-424.443519,0.000217,2]
[331235189,1720149051384,-260.295176,0.000217,2]
[331235190,1720149051394,-260.295176,0.000217,2]
[331235191,1720149051403,-204.177599,0.000217,2]
[331235193,1720149051413,-204.177599,0.000217,2]
[331235195,1720149051422,-151.0,0.000217,2]
[331235197,1720149051431,-237.623727,0.000217,2]
[331235199,1720149051442,-151.0,0.000217,2]
[331235201,1720149051451,-330.238016,0.000217,2]
[331235202,1720149051461,-237.623727,0.000217,2]
[331235203,1720149051470,-151.0,0.000217,2]
[331235204,1720149051480,-151.0,0.000217,2]
[331235205,1720149051491,-330.238016,0.000217,2]
[331235206,1720149051501,-151.0,0.000217,2]
[331235207,1720149051511,-151.0,0.000217,2]
[331235208,1720149051521,-151.0,0.000217,2]
[331235209,1720149051531,-1386.296538,0.000217,2]
[331235210,1720149051540,-1386.296538,0.000217,2]
[331235211,1720149051550,-159.633682,0.000217,2]
[331235212,1720149051559,-3679.578387,0.000217,2]
[331235213,1720149051570,-151.0,0.000217,2]
[331235214,1720149051580,-3679.578387,0.000217,2]
[331235215,1720149051590,-159.963447,0.000217,2]
[331235216,1720149051599,-344.843453,0.000217,2]
[331235217,1720149051609,-328.17819,0.000217,2]
[331235218,1720149051619,-247.790203,0.000217,2]
[331235219,1720149051628,-151.0,0.000217,2]
[331235220,1720149051638,-344.843453,0.000217,2]
[331235221,1720149051648,-328.17819,0.000217,2]
[331235222,1720149051657,-247.790203,0.000217,2]
[331235223,1720149051667,-151.0,0.000217,2]
[331235224,1720149051676,-151.0,0.000217,2]
[331235225,1720149051686,-151.0,0.000217,2]
[331235226,1720149051696,-224.544717,0.000217,2]
[331235227,1720149051705,-224.544717,0.000217,2]
[331235228,1720149051715,-151.0,0.000217,2]
[331235229,1720149051724,-151.0,0.000217,2]
[331235230,1720149051734,-218.261036,0.000217,2]
[331235231,1720149051744,-218.261036,0.000217,2]
[331235232,1720149051753,-380.105,0.000217,2]
[331235233,1720149051763,-380.105,0.000217,2]
[331235234,1720149051773,-153.261711,0.000217,2]
[331235235,1720149051783,-3636.611798,0.000217,2]
[331235236,1720149051792,-217.793013,0.000217,2]
[331235237,1720149051806,-151.0,0.000217,2]
[331235238,1720149051817,-3636.611798,0.000217,2]
[331235239,1720149051827,-217.793013,0.000217,2]
[331235240,1720149051836,-151.0,0.000217,2]
[331235241,1720149051849,-484.560468,0.000217,2]
[331235242,1720149051859,-151.0,0.000217,2]
[331235243,1720149051868,-484.560468,0.000217,2]
[331235244,1720149051878,-150.896188,0.00021718,2]
[331235245,1720149051887,-155.660798,0.00021728,2]
[331235246,1720149051897,-151.0,0.00021728,2]
[331235247,1720149051907,-500.0,0.00021737,2]
[331235248,1720149051917,-200.0,0.00021737,2]
[331235249,1720149051926,-151.0,0.00021742,2]
[331235250,1720149051936,-151.0,0.00021742,2]
[331235251,1720149051946,-151.0,0.00021742,2]
[331235252,1720149051956,-151.0,0.00021744,2]
[331235253,1720149051965,-151.0,0.00021744,2]
[331235254,1720149051975,-151.0,0.00021744,2]
[331235255,1720149051984,-151.0,0.00021744,2]
[331235256,1720149051993,-234.99,0.00021752,2]
[331235257,1720149052003,-500.0,0.000218,7]
[331235258,1720149052013,-208.06971,0.00021806,2]
[331235259,1720149052023,-417.716555,0.00021806,2]
[331235260,1720149052033,-1194.625344,0.00021806,2]
[331235261,1720149052043,-240.065953,0.00021806,2]
[331235262,1720149052200,-428.743466,0.00021806,2]
[331235263,1720149052214,-578.942534,0.00021806,2]
[331235264,1720149052224,-171.65428965,0.0002181,2]
[331235265,1720149052234,-1237.0,0.00021812,2]
[331235266,1720149052244,-334.80901127,0.00021813,2]
[331235267,1720149052255,-225.20524947,0.00021813,2]
[331235268,1720149052267,-188.29048302,0.0002183,2]
[331235269,1720149052278,-188.29048302,0.0002183,2]
[331235270,1720149052288,-5647.3551578,0.0002184,2]
[331235271,1720149052298,-888.98670003,0.00021849,2]
[331235272,1720149052313,-151.0,0.00021861,2]
[331235273,1720149052323,-180.44,0.00021871,30]
[331235274,1720149052333,-200.0,0.0002188,2]
[331235275,1720149052343,-150.5,0.00021881,30]
[331235276,1720149052352,-150.5,0.00021891,30]
[331235277,1720149052362,-500.0,0.000219,7]
[331235278,1720149052372,-8168.46437315,0.000219,2]
[331235279,1720149052381,-15473.2422302,0.00021901,2]
[331235280,1720149052391,-1243.1417558,0.00021901,2]
[331235281,1720149052400,-33584.6070988,0.00021906,2]
[331235282,1720149052409,-3556.4280966,0.00021906,2]
[331235283,1720149052418,-151.0,0.00021906,2]
[331235284,1720149052427,-151.0,0.00021906,2]
[331235285,1720149052437,-151.0,0.00021906,2]
[331235286,1720149052446,-218.261036,0.00021906,2]
[331235287,1720149052455,-218.261036,0.00021906,2]
[331235288,1720149052465,-380.105,0.00021906,2]
[331235289,1720149052474,-380.105,0.00021906,2]
[331235290,1720149052485,-3636.611798,0.00021906,2]
[331235291,1720149052494,-217.793013,0.00021906,2]
[331235292,1720149052504,-3636.611798,0.00021906,2]
[331235293,1720149052513,-217.793013,0.00021906,2]
[331235294,1720149052523,-151.0,0.00021906,2]
[331235295,1720149052532,-151.0,0.00021906,2]
[331235296,1720149052541,-484.560468,0.00021906,2]
[331235297,1720149052550,-151.0,0.00021906,2]
[331235298,1720149052564,-484.560468,0.00021906,2]
[331235299,1720149052573,-200.0,0.00021906,7]
[331235300,1720149052582,-164.91172843,0.00021907,2]
[331235301,1720149052594,-200.0,0.00021907,7]
[331235302,1720149052603,-300.0,0.0002191,2]
[331235303,1720149052612,-734.9335387,0.0002191,2]
[331235304,1720149052622,-3173.9440254,0.00021911,2]
[331235305,1720149052632,-211.4611092,0.00021912,2]
[331235306,1720149052641,-5923.2313206,0.00021912,2]
[331235307,1720149052650,-151.0,0.00021912,2]
[331235308,1720149052660,-344.843453,0.00021912,2]
[331235309,1720149052670,-328.17819,0.00021912,2]
[331235310,1720149052679,-247.790203,0.00021912,2]
[331235311,1720149052688,-344.843453,0.00021912,2]
[331235312,1720149052698,-328.17819,0.00021912,2]
[331235313,1720149052707,-247.790203,0.00021912,2]
[331235314,1720149052716,-151.0,0.00021912,2]
[331235315,1720149052726,-151.0,0.00021912,2]
[331235316,1720149052735,-224.544717,0.00021912,2]
[331235317,1720149052744,-224.544717,0.00021912,2]
[331235318,1720149052754,-196.061826,0.00021913,2]
[331235319,1720149052763,-151.0,0.00021913,2]
[331235320,1720149052772,-196.061826,0.00021913,2]
[331235321,1720149052781,-151.0,0.00021913,2]
[331235322,1720149052791,-151.0,0.00021913,2]
[331235323,1720149052800,-151.480868,0.00021913,2]
[331235324,1720149052817,-151.0,0.00021913,2]
[331235325,1720149052826,-151.0,0.00021913,2]
[331235326,1720149052838,-151.0,0.00021913,2]
[331235327,1720149052848,-151.0,0.00021913,2]
[331235328,1720149052857,-151.0,0.00021913,2]
[331235329,1720149052868,-151.0,0.00021913,2]
[331235330,1720149052878,-151.0,0.00021913,2]
[331235331,1720149052888,-151.0,0.00021913,2]
[331235332,1720149052898,-201.265823,0.00021913,2]
[331235333,1720149052908,-151.0,0.00021913,2]
[331235334,1720149052918,-151.0,0.00021913,2]
[331235335,1720149052928,-151.41562,0.00021913,2]
[331235336,1720149052937,-151.0,0.00021913,2]
[331235337,1720149052947,-151.41562,0.00021913,2]
[331235338,1720149052956,-151.0,0.00021913,2]
[331235339,1720149052966,-151.0,0.00021913,2]
[331235340,1720149052975,-151.0,0.00021913,2]
[331235341,1720149052984,-151.0,0.00021913,2]
[331235342,1720149052994,-469.01014,0.00021913,2]
[331235343,1720149053005,-151.0,0.00021913,2]
[331235344,1720149053016,-151.0,0.00021913,2]
[331235345,1720149053026,-151.0,0.00021913,2]
[331235346,1720149053036,-435.272386,0.00021913,2]
[331235347,1720149053046,-151.0,0.00021913,2]
[331235348,1720149053060,-435.272386,0.00021913,2]
[331235349,1720149053070,-151.0,0.00021913,2]
[331235350,1720149053079,-151.0,0.00021913,2]
[331235351,1720149053089,-270.377349,0.00021913,2]
[331235352,1720149053100,-270.377349,0.00021913,2]
[331235353,1720149053111,-151.612364,0.00021913,2]
[331235354,1720149053120,-151.0,0.00021913,2]
[331235355,1720149053129,-380.96148,0.00021913,2]
[331235356,1720149053138,-380.96148,0.00021913,2]
[331235357,1720149053147,-157.980726,0.00021913,2]
[331235358,1720149053156,-157.980726,0.00021913,2]
[331235359,1720149053166,-151.0,0.00021913,2]
[331235360,1720149053175,-151.0,0.00021913,2]
[331235361,1720149053184,-151.0,0.00021913,2]
[331235362,1720149053194,-151.0,0.00021913,2]
[331235363,1720149053203,-254.93662,0.00021913,2]
[331235364,1720149053216,-151.0,0.00021913,2]
[331235365,1720149053226,-254.93662,0.00021913,2]
[331235366,1720149053235,-151.0,0.00021913,2]
[331235367,1720149053245,-151.0,0.00021913,2]
[331235368,1720149053256,-153.332378,0.00021913,2]
[331235369,1720149053268,-151.0,0.00021913,2]
[331235370,1720149053278,-151.0,0.00021913,2]
[331235371,1720149053287,-151.0,0.00021913,2]
[331235372,1720149053298,-405.573681,0.00021913,2]
[331235373,1720149053311,-405.573681,0.00021913,2]
[331235374,1720149053321,-151.0,0.00021913,2]
[331235375,1720149053330,-151.0,0.00021913,2]
[331235376,1720149053342,-1536.815455,0.00021913,2]
[331235377,1720149053352,-1536.815455,0.00021913,2]
[331235378,1720149053361,-151.0,0.00021913,2]
[331235379,1720149053370,-151.0,0.00021913,2]
[331235380,1720149053380,-151.0,0.00021913,2]
[331235381,1720149053389,-151.0,0.00021913,2]
[331235382,1720149053399,-182.257368,0.00021913,2]
[331235383,1720149053408,-178.296799,0.00021913,2]
[331235384,1720149053418,-178.296799,0.00021913,2]
[331235385,1720149053428,-182.257368,0.00021913,2]
[331235386,1720149053439,-768.577486,0.00021913,2]
[331235387,1720149053448,-768.577486,0.00021913,2]
[331235388,1720149053457,-151.0,0.00021913,2]
[331235389,1720149053466,-246.096172,0.00021913,2]
[331235390,1720149053476,-289.294113,0.00021913,2]
[331235391,1720149053487,-289.294113,0.00021913,2]
[331235392,1720149053497,-151.0,0.00021913,2]
[331235393,1720149053507,-289.725,0.00021913,2]
[331235394,1720149053516,-151.0,0.00021913,2]
[331235395,1720149053525,-393.523842,0.00021913,2]
[331235396,1720149053535,-151.0,0.00021913,2]
[331235397,1720149053544,-393.523842,0.00021913,2]
[331235398,1720149053555,-366.444779,0.00021913,2]
[331235399,1720149053566,-366.444779,0.00021913,2]
[331235400,1720149053576,-28625.3689402,0.00021913,2]
[331235401,1720149053585,-151.0,0.00021913,2]
[331235402,1720149053595,-220.794254,0.00021913,2]
[331235403,1720149053604,-214.460407,0.00021913,2]
[331235404,1720149053613,-216.311286,0.00021913,2]
[331235405,1720149053622,-214.460407,0.00021913,2]
[331235406,1720149053632,-151.0,0.00021913,2]
[331235407,1720149053641,-461.052404,0.00021913,2]
[331235408,1720149053650,-461.052404,0.00021913,2]
[331235409,1720149053659,-151.0,0.00021913,2]
[331235410,1720149053668,-250.371047,0.00021913,2]
[331235411,1720149053678,-250.371047,0.00021913,2]
[331235412,1720149053687,-151.0,0.00021913,2]
[331235413,1720149053696,-1415.170171,0.00021913,2]
[331235414,1720149053706,-151.984777,0.00021913,2]
[331235415,1720149053715,-1322.837372,0.00021913,2]
[331235416,1720149053724,-1322.837372,0.00021913,2]
[331235417,1720149053734,-151.0,0.00021913,2]
[331235418,1720149053742,-151.0,0.00021913,2]
[331235419,1720149053751,-1347.722175,0.00021913,2]
[331235420,1720149053761,-1347.722175,0.00021913,2]
[331235421,1720149053771,-6365.843658,0.00021913,2]
[331235422,1720149053780,-151.0,0.00021913,2]
[331235423,1720149053789,-151.0,0.00021913,2]
[331235424,1720149053799,-276.542065,0.00021913,2]
[331235425,1720149053812,-424.443519,0.00021913,2]
[331235426,1720149053822,-152.139431,0.00021913,2]
[331235427,1720149053832,-276.542065,0.00021913,2]
[331235428,1720149053841,-6365.843658,0.00021913,2]
[331235429,1720149053851,-424.443519,0.00021913,2]
[331235430,1720149053860,-260.295176,0.00021913,2]
[331235431,1720149053869,-260.295176,0.00021913,2]
[331235432,1720149053878,-204.177599,0.00021913,2]
[331235433,1720149053887,-204.177599,0.00021913,2]
[331235434,1720149053897,-151.0,0.00021913,2]
[331235435,1720149053906,-237.623727,0.00021913,2]
[331235436,1720149053916,-151.0,0.00021913,2]
[331235437,1720149053926,-330.238016,0.00021913,2]
[331235438,1720149053935,-237.623727,0.00021913,2]
[331235439,1720149053944,-154.942333,0.00021913,2]
[331235440,1720149053954,-330.238016,0.00021913,2]
[331235441,1720149053963,-151.0,0.00021913,2]
[331235442,1720149053972,-151.0,0.00021913,2]
[331235443,1720149053982,-151.0,0.00021913,2]
[331235444,1720149053991,-1386.296538,0.00021913,2]
[331235445,1720149054000,-1386.296538,0.00021913,2]
[331235446,1720149054010,-1231.1787232,0.00021913,2]
[331235447,1720149054020,-3679.578387,0.00021913,2]
[331235448,1720149054029,-151.0,0.00021913,2]
[331235449,1720149054038,-3679.578387,0.00021913,2]
[331235450,1720149054048,-152.043937,0.00021913,2]
[331235451,1720149054063,-251.8202924,0.00021916,2]
[331235452,1720149054072,-151.0,0.00021916,2]
[331235453,1720149054085,-166.694,0.00021916,2]
[331235454,1720149054095,-166.694,0.00021916,2]
[331235455,1720149054104,-5013.60602684,0.00021916,2]
[331235456,1720149054114,-150.0,0.00021916,2]
[331235457,1720149054124,-56943.61488033,0.00021917,7]
[331235458,1720149054621,-283.9035758,0.00021917,7]
[331235459,1720149054633,-1022.04087,0.00021917,7]
[331235460,1720149054646,-606596.30390896,0.00021917,7]
[331235461,1720149054658,-1050.0,0.00021917,7]
[331235462,1720149054671,-389.394,0.00021917,7]
[331235463,1720149054683,-278.1134555,0.00021917,7]
[331235464,1720149054695,-758.3337372,0.00021917,7]
[331235465,1720149054707,-1287.68985141,0.00021917,7]
[331235466,1720149054718,-48012.25,0.00021917,7]
[331235467,1720149054730,-261.96298874,0.00021917,7]
[331235468,1720149054742,-977.06986946,0.00021917,7]
[331235469,1720149054754,-1803.52865084,0.00021917,7]
[331235470,1720149054765,-8382.7551643,0.00021917,7]
[331235471,1720149054776,-2790.1,0.00021917,7]
[331235472,1720149054789,-1846.50000045,0.00021917,7]
[331235473,1720149054801,-8821.99999998,0.00021917,7]
[331235474,1720149054820,-212577.96773701,0.00021917,7]
[331235475,1720149054830,-292.32,0.00021917,2]
[331235476,1720149054840,-500.0,0.00021917,4]
[331235477,1720149054850,-500.0,0.00021917,4]
[331235478,1720149054860,-500.0,0.00021917,4]
[331235479,1720149054870,-500.0,0.00021917,4]
[331235480,1720149054880,-500.0,0.00021917,4]
[331235481,1720149054890,-596.16620679,0.00021917,4]
[331235482,1720149054900,-500.0,0.00021917,4]
[331235483,1720149054910,-504.00649411,0.00021917,4]
[331235484,1720149054921,-196.061826,0.00021917,2]
[331235485,1720149054931,-196.061826,0.00021917,2]
[331235486,1720149054942,-196.061826,0.00021917,2]
[331235487,1720149054952,-196.061826,0.00021917,2]
[331235488,1720149054962,-196.061826,0.00021917,2]
[331235489,1720149054972,-196.061826,0.00021917,2]
[331235490,1720149054983,-151.0,0.00021917,2]
[331235491,1720149054993,-196.061826,0.00021917,2]
[331235492,1720149055004,-151.0,0.00021917,2]
[331235493,1720149055014,-151.900955,0.00021917,2]
[331235494,1720149055025,-196.061826,0.00021917,2]
[331235495,1720149055036,-196.061826,0.00021917,2]
[331235496,1720149055046,-196.061826,0.00021917,2]
[331235497,1720149055060,-196.061826,0.00021917,2]
[331235498,1720149055070,-196.061826,0.00021917,2]
[331235499,1720149055080,-196.061826,0.00021917,2]
[331235500,1720149055090,-196.06182064,0.00021917,2]
[331235501,1720149055103,-151.0,0.00021917,2]
[331235502,1720149055114,-151.0,0.00021917,2]
[331235503,1720149055124,-151.0,0.00021917,2]
[331235504,1720149055135,-151.0,0.00021917,2]
[331235505,1720149055145,-222.597076,0.00021917,2]
[331235506,1720149055155,-166.694,0.00021917,2]
[331235507,1720149055165,-152.047095,0.00021917,2]
[331235508,1720149055175,-166.694,0.00021917,2]
[331235509,1720149055186,-166.694,0.00021917,2]
[331235510,1720149055197,-166.694,0.00021917,2]
[331235511,1720149055208,-166.694,0.00021917,2]
[331235512,1720149055220,-166.694,0.00021917,2]
[331235513,1720149055231,-166.694,0.00021917,2]
[331235514,1720149055241,-166.694,0.00021917,2]
[331235515,1720149055251,-166.694,0.00021917,2]
[331235516,1720149055267,-166.694,0.00021917,2]
[331235517,1720149055278,-151.0,0.00021917,2]
[331235518,1720149055290,-166.694,0.00021917,2]
[331235519,1720149055302,-193.447524,0.00021917,2]
[331235520,1720149055318,-166.694,0.00021917,2]
[331235521,1720149055329,-166.694,0.00021917,2]
[331235522,1720149055339,-166.694,0.00021917,2]
[331235523,1720149055353,-166.694,0.00021917,2]
[331235524,1720149055364,-166.694,0.00021917,2]
[331235525,1720149055375,-166.694,0.00021917,2]
[331235526,1720149055386,-166.694,0.00021917,2]
[331235527,1720149055396,-183.66722986,0.00021917,4]
[331235528,1720149055407,-254.290003,0.00021917,2]
[331235529,1720149055417,-500.0,0.00021917,4]
[331235530,1720149055428,-502.6626747,0.00021917,4]
[331235531,1720149055439,-500.0,0.00021917,4]
[331235532,1720149055449,-506.47874487,0.00021917,4]
[331235533,1720149055460,-500.0,0.00021917,4]
[331235534,1720149055470,-196.79436248,0.00021917,4]
[331235535,1720149055480,-500.0,0.00021917,4]
[331235536,1720149055492,-500.0,0.00021917,4]
[331235537,1720149055503,-502.91481795,0.00021917,4]
[331235538,1720149055513,-500.0,0.00021917,4]
[331235539,1720149055523,-500.0,0.00021917,4]
[331235540,1720149055533,-502.06234665,0.00021917,4]
[331235541,1720149055543,-500.0,0.00021917,4]
[331235542,1720149055553,-500.0,0.00021917,4]
[331235543,1720149055568,-500.0,0.00021917,4]
[331235544,1720149055578,-500.0,0.00021917,4]
[331235545,1720149055588,-505.31911205,0.00021917,4]
[331235546,1720149055600,-495.96659995,0.00021917,4]
[331235547,1720149055610,-500.0,0.00021917,4]
[331235548,1720149055619,-500.0,0.00021917,4]
[331235549,1720149055630,-500.0,0.00021917,4]
[331235550,1720149055640,-500.0,0.00021917,4]
[331235551,1720149055650,-500.0,0.00021917,4]
[331235552,1720149055660,-500.0,0.00021917,4]
[331235553,1720149055670,-508.51935339,0.00021917,4]
[331235554,1720149055680,-500.0,0.00021917,4]
[331235555,1720149055689,-500.0,0.00021917,4]
[331235556,1720149055699,-500.0,0.00021917,4]
[331235557,1720149055709,-500.0,0.00021917,4]
[331235558,1720149055718,-500.0,0.00021917,4]
[331235559,1720149055728,-502.2018744,0.00021917,4]
[331235560,1720149055737,-500.0,0.00021917,4]
[331235561,1720149055746,-500.0,0.00021917,4]
[331235562,1720149055756,-500.0,0.00021917,4]
[331235563,1720149055767,-500.0,0.00021917,4]
[331235564,1720149055776,-500.0,0.00021917,4]
[331235565,1720149055786,-508.87047574,0.00021917,4]
[331235566,1720149055796,-509.00428675,0.00021917,4]
[331235567,1720149055809,-503.69973468,0.00021917,4]
[331235568,1720149055818,-500.0,0.00021917,4]